bitfinex/quotes_ETHUSD_20260227
["timestamp","ask_amount","ask_price","bid_price","bid_amount"]
[1772195806001,2.38722316,1965.6,1965.1,0.56619663]
[1772195806394,0.58543389,1965.5,1965.1,0.56619663]
[1772195806699,1.11433551,1965.4,1965.1,0.56619663]
[1772195808201,0.58543389,1965.3,1965.0,0.0011]
[1772195808371,0.58543389,1965.3,1965.0,0.56729663]
[1772195808872,0.58543389,1965.3,1965.2,0.0011]
[1772195809074,0.58543389,1965.3,1965.0,0.56729663]
[1772195809475,1.27207249,1965.3,1965.0,0.56729663]
[1772195810289,6.20236272,1965.4,1965.0,0.56729663]
[1772195810483,6.20236272,1965.4,1964.9,1.27342692]
[1772195810484,0.58543389,1965.0,1964.7,0.0011]
[1772195810698,1.11433551,1964.9,1964.5,0.56729663]
[1772195811497,1.11433551,1964.9,1964.1,2.54555542]
[1772195811498,0.58543389,1964.6,1964.1,0.56619663]
[1772195811706,1.11433551,1964.5,1964.1,0.56619663]
[1772195812405,0.52890162,1964.5,1964.1,0.56619663]
[1772195813096,0.52890162,1964.5,1964.1,1.83903866]
[1772195813296,0.58543389,1964.6,1964.2,0.56619663]
[1772195813471,1.80149006,1964.5,1964.0,0.0011]
[1772195813672,0.52890162,1964.1,1963.7,0.0011]
[1772195813889,0.52890162,1964.1,1962.9,5.09434571]
[1772195813890,0.58543389,1964.0,1963.3,1.83952525]
[1772195814095,0.58543389,1963.8,1963.3,1.83954402]
[1772195814522,0.58543389,1963.6,1963.1,0.56619663]
[1772195814690,0.58543389,1963.6,1963.0,1.27352738]
[1772195814898,0.58543389,1963.6,1962.9,1.83980022]
[1772195815935,0.58543389,1963.5,1962.9,1.83980022]
[1772195816407,1.11433551,1963.5,1962.9,1.83980022]
[1772195817322,0.58543389,1963.5,1962.9,1.83980022]
[1772195817530,0.58543389,1963.5,1962.5,3.40105835]
[1772195817829,0.58543389,1963.5,1962.8,0.56619663]
[1772195818000,1.85867482,1963.5,1962.8,0.56619663]
[1772195818202,1.85868557,1963.5,1962.8,0.56619663]
[1772195818402,0.58543389,1963.4,1962.8,0.56619663]
[1772195818807,0.58543389,1963.4,1962.7,1.83995217]
[1772195819009,0.58543389,1963.4,1962.7,0.56619663]
[1772195820244,1.85880016,1963.3,1962.7,0.56619663]
[1772195820450,0.58543389,1963.2,1962.7,1.83994915]
[1772195820609,0.58543389,1963.2,1962.5,3.40102043]
[1772195820927,0.58543389,1963.2,1962.7,0.0011]
[1772195821224,0.58543389,1963.2,1962.2,1.84025946]
[1772195821452,3.06078313,1963.0,1962.5,0.0011]
[1772195821638,0.58543389,1962.8,1962.4,0.0011]
[1772195821816,0.58543389,1962.8,1961.8,1.84050716]
[1772195822148,0.58543389,1962.8,1961.8,0.56619663]
[1772195822319,0.58543389,1962.6,1961.8,1.84053175]
[1772195822652,1.27375554,1962.7,1961.9,0.56619663]
[1772195822817,0.58543389,1962.6,1961.9,0.56619663]
[1772195823218,0.58543389,1962.6,1961.8,1.27433512]
[1772195823514,0.58543389,1962.6,1961.9,0.56619663]
[1772195824347,1.85931924,1962.5,1962.0,1.27420998]
[1772195824841,0.58543389,1962.4,1961.9,0.56619663]
[1772195825072,0.58543389,1962.4,1961.7,5.6636827]
[1772195825338,0.58543389,1962.4,1961.7,1.84060148]
[1772195825839,0.58543389,1962.4,1961.8,0.56619663]
[1772195826348,2.47534924,1963.0,1961.8,0.56619663]
[1772195826349,0.58543389,1963.1,1962.0,0.56619663]
[1772195826554,0.58543389,1963.3,1962.2,0.56619663]
[1772195827226,0.58543389,1963.3,1962.4,0.56619663]
[1772195828629,1.85886502,1963.2,1962.5,1.27388535]
[1772195828833,0.58543389,1963.2,1962.6,0.56619663]
[1772195829951,0.58543389,1963.2,1962.5,1.27388535]
[1772195830163,0.58543389,1963.2,1962.4,1.83441081]
[1772195830466,0.57698209,1962.8,1961.9,0.56051236]
[1772195830621,0.57698209,1962.6,1961.8,1.27433989]
[1772195830823,0.57698209,1962.6,1961.8,1.83485225]
[1772195831043,0.57698209,1962.6,1961.9,0.56051236]
[1772195831434,0.57698209,1962.6,1961.8,1.27433989]
[1772195831948,0.57698209,1962.6,1961.8,1.83485225]
[1772195832949,0.57698209,1962.4,1961.8,1.83485225]
[1772195833150,0.57698209,1962.4,1961.6,3.39592901]
[1772195833328,0.57698209,1962.4,1961.2,0.56051236]
[1772195833929,0.57698209,1962.2,1961.9,0.0011]
[1772195834136,0.57698209,1962.1,1961.4,0.56051236]
[1772195834336,0.57698209,1962.1,1961.8,0.0011]
[1772195834633,1.567,1962.2,1961.8,0.0011]
[1772195834840,0.57698209,1962.3,1961.8,0.0011]
[1772195835357,1.85100159,1962.3,1961.8,1.27543989]
[1772195835948,1.85080253,1962.6,1961.9,0.56051236]
[1772195836743,0.57698209,1962.6,1961.9,0.56051236]
[1772195837150,2.84079144,1962.7,1962.0,1.27420998]
[1772195837151,1.27375911,1962.7,1962.0,1.27420998]
[1772195837354,1.27375911,1962.7,1962.1,0.56051236]
[1772195838762,1.8507412,1962.7,1962.1,0.56051236]
[1772195840208,1.8507412,1962.7,1962.2,1.27408011]
[1772195840477,3.4187412,1962.7,1962.2,1.27408011]
[1772195841454,0.57698209,1962.6,1961.9,1.83473513]
[1772195841656,2.84175911,1962.7,1961.8,0.0011]
[1772195841657,0.57698209,1962.3,1961.8,0.0011]
[1772195842194,1.85103754,1962.3,1961.8,1.27543753]
[1772195842884,1.85103754,1962.3,1961.8,0.0011]
[1772195843282,1.85100132,1962.3,1961.8,0.0011]
[1772195844375,1.57,1962.4,1961.8,0.56161236]
[1772195845074,2.14698209,1962.4,1961.8,0.56161236]
[1772195845292,0.57698209,1962.3,1961.8,0.0011]
[1772195846672,0.57698209,1962.3,1961.9,0.0011]
[1772195846999,1.85100364,1962.3,1961.9,0.0011]
[1772195847387,0.57698209,1962.2,1961.8,0.0011]
[1772195847589,0.57698209,1962.2,1961.6,0.0011]
[1772195847590,0.57698209,1962.1,1961.6,0.0011]
[1772195847787,0.57698209,1962.1,1960.8,0.56051236]
[1772195847788,0.57698209,1961.5,1960.8,0.56051236]
[1772195847992,2.14698209,1961.5,1960.8,0.56051236]
[1772195848190,0.57698209,1961.7,1960.8,0.56051236]
[1772195848588,0.57698209,1961.5,1960.9,1.27492477]
[1772195848790,0.57698209,1961.5,1960.9,1.83543713]
[1772195849307,1.27443204,1961.7,1960.5,1.2751849]
[1772195849308,2.34654683,1961.2,1960.5,1.2751849]
[1772195849507,2.14798209,1961.1,1960.4,0.56051236]
[1772195849700,2.14798209,1961.1,1960.4,1.8357529]
[1772195849701,0.57698209,1961.0,1960.4,1.8357529]
[1772195850001,0.57698209,1961.0,1960.4,1.27524054]
[1772195850377,1.76956474,1961.2,1960.5,0.56051236]
[1772195850378,0.57698209,1961.2,1960.5,0.56051236]
[1772195850584,1.27453479,1961.5,1960.7,0.56051236]
[1772195850828,0.57698209,1961.4,1960.7,0.56051236]
[1772195852410,0.57698209,1961.4,1960.6,1.27511986]
[1772195852814,0.57698209,1961.2,1960.5,5.10047944]
[1772195853011,0.57698209,1961.2,1960.6,0.56051236]
[1772195853934,2.84444086,1961.7,1960.6,0.56051236]
[1772195854297,1.27423978,1962.0,1960.7,0.56051236]
[1772195854501,2.84414918,1962.1,1961.0,0.56051236]
[1772195854705,2.34654683,1962.4,1961.2,0.56051236]
[1772195854706,5.97115111,1962.3,1961.2,0.56051236]
[1772195854906,5.97115111,1962.3,1961.3,1.27466476]
[1772195855256,1.27401518,1962.3,1961.4,0.56051236]
[1772195855406,2.84494042,1962.5,1961.4,0.56051236]
[1772195855720,0.001,1962.5,1961.6,0.56051236]
[1772195855896,0.001,1962.5,1961.9,0.56051236]
[1772195857003,0.001,1962.5,1962.1,0.56051236]
[1772195857401,1.76956474,1962.4,1961.6,1.27442958]
[1772195857916,2.30570198,1962.4,1961.6,1.27442958]
[1772195858218,0.001,1962.5,1961.7,0.51906644]
[1772195858429,0.001,1962.2,1961.7,0.51906644]
[1772195859023,0.001,1962.2,1961.5,0.51906644]
[1772195859732,0.001,1962.2,1961.4,5.09835633]
[1772195859928,0.53713724,1962.2,1961.4,5.09835633]
[1772195860657,0.53713724,1962.2,1961.5,0.57093206]
[1772195860957,0.001,1962.2,1961.5,0.57093206]
[1772195861263,0.001,1962.2,1961.6,1.27446982]
[1772195862553,0.001,1962.2,1961.6,1.84540188]
[1772195865552,0.001,1962.2,1960.8,5.1005055]
[1772195865553,0.53233623,1962.1,1961.1,0.57093206]
[1772195866361,0.001,1962.2,1961.6,4.056781]
[1772195866535,0.001,1962.5,1961.9,0.57093206]
[1772195867125,0.001,1962.5,1962.0,1.76956474]
[1772195867448,0.001,1963.1,1962.3,1.84494724]
[1772195868029,0.53333623,1963.1,1962.3,1.84494724]
[1772195868260,0.53233623,1963.0,1962.3,1.27401518]
[1772195869268,0.53233623,1962.7,1961.9,1.27427493]
[1772195869425,1.80610716,1962.7,1961.9,1.84520699]
[1772195869768,1.80610508,1962.7,1961.9,1.84520699]
[1772195870431,0.001,1962.1,1961.9,1.84520699]
[1772195870630,1.80610508,1962.7,1961.9,1.84520699]
[1772195872974,0.53233623,1962.7,1961.9,1.84520699]
[1772195873162,0.53233623,1962.7,1962.0,0.57093206]
[1772195873369,1.77056474,1963.1,1962.0,0.57093206]
[1772195873370,0.001,1963.1,1962.0,0.57093206]
[1772195873669,1.80683302,1963.1,1962.2,0.57093206]
[1772195873865,0.53233623,1963.0,1962.2,0.57093206]
[1772195874677,0.53233623,1963.0,1962.3,1.27401518]
[1772195875046,1.80590297,1963.0,1962.3,1.27401518]
[1772195875685,0.53233623,1963.0,1962.3,1.27401518]
[1772195875850,0.53233623,1963.0,1962.3,1.84494724]
[1772195876480,0.001,1963.1,1962.4,0.57093206]
[1772195877048,0.001,1963.1,1962.6,0.57093206]
[1772195879265,0.001,1963.1,1962.7,1.27375554]
[1772195880071,0.53233623,1963.6,1962.8,0.57093206]
[1772195880655,2.83109143,1963.8,1962.8,0.57093206]
[1772195880656,3.36342766,1963.8,1962.8,0.57093206]
[1772195881546,0.53233623,1963.7,1962.9,1.27362575]
[1772195882076,0.53233623,1963.7,1962.9,1.84455781]
[1772195882377,0.001,1963.0,1962.9,1.84455781]
[1772195882565,0.53233623,1963.9,1963.0,0.57093206]
[1772195882951,0.53233623,1964.0,1963.2,0.57093206]
[1772195883565,0.53233623,1964.0,1962.9,2.83462575]
[1772195883566,0.53233623,1964.0,1963.0,0.57093206]
[1772195883765,0.53233623,1963.8,1963.1,1.273496]
[1772195884178,5.27824669,1964.3,1963.1,1.273496]
[1772195884179,0.53233623,1964.2,1963.2,0.57093206]
[1772195884472,0.53233623,1964.2,1963.4,0.57093206]
[1772195884473,1.80512069,1964.2,1963.4,0.57093206]
[1772195884677,0.53233623,1964.2,1963.5,0.57093206]
[1772195884882,1.27265322,1964.4,1963.5,0.57093206]
[1772195885048,0.26598475,1964.7,1964.1,2.3404968]
[1772195885248,0.53233623,1964.6,1963.8,0.57093206]
[1772195885579,0.53233623,1964.6,1963.8,2.13193206]
[1772195885746,0.53233623,1964.6,1963.9,1.27297723]
[1772195885747,1.27258844,1964.5,1963.9,1.27297723]
[1772195886077,0.26598475,1964.7,1964.0,0.57093206]
[1772195886273,1.53844365,1964.7,1964.0,0.57093206]
[1772195886475,0.26598475,1964.7,1964.0,0.57093206]
[1772195886861,0.53233623,1964.6,1963.9,1.27297723]
[1772195887178,0.53233623,1964.6,1963.7,1.27305753]
[1772195887391,0.53233623,1964.2,1963.3,1.27331096]
[1772195887872,0.53233623,1964.0,1963.3,1.27331096]
[1772195888582,0.53233623,1964.0,1963.2,1.84431757]
[1772195889173,1.27284761,1964.1,1963.3,0.57093206]
[1772195889376,1.99202523,1964.2,1963.3,0.57093206]
[1772195890059,1.99202523,1964.2,1963.1,2.83445096]
[1772195890060,0.53433507,1963.9,1963.1,2.83445096]
[1772195891080,0.53433507,1963.9,1963.1,3.39580693]
[1772195891283,3.014689,1964.2,1963.2,0.56135597]
[1772195891487,1.80716783,1964.2,1963.2,0.56135597]
[1772195891781,0.53433507,1964.1,1963.2,0.56135597]
[1772195891972,0.53433507,1963.9,1963.1,2.83245096]
[1772195892284,0.53433507,1963.9,1963.1,3.39380693]
[1772195892486,0.53433507,1963.9,1962.4,1.76956474]
[1772195892815,0.53433507,1963.6,1962.6,1.559]
[1772195892990,0.53433507,1963.6,1962.7,0.56135597]
[1772195893675,0.53433507,1963.4,1962.5,1.27388535]
[1772195894258,1.80770134,1963.3,1962.8,0.0011]
[1772195894455,0.53433507,1963.2,1962.8,0.0011]
[1772195896184,1.80783107,1963.1,1962.8,0.0011]
[1772195897090,1.80854134,1963.6,1962.8,0.56245597]
[1772195898169,0.53533507,1963.6,1962.9,1.27362575]
[1772195898370,0.53533507,1963.6,1962.9,1.83498172]
[1772195898794,0.001,1963.6,1963.0,0.56135597]
[1772195900403,0.001,1963.6,1963.1,1.273496]
[1772195900404,1.27417722,1963.6,1963.1,1.273496]
[1772195900591,0.53433507,1963.5,1962.8,2.83073902]
[1772195901871,0.53433507,1963.5,1962.8,3.39209499]
[1772195902882,1.27417722,1963.6,1962.9,0.56135597]
[1772195903084,1.27419221,1963.6,1962.9,0.56135597]
[1772195904587,0.001,1963.6,1963.0,1.27356087]
[1772195904792,0.001,1963.6,1963.1,0.56135597]
[1772195906703,0.001,1963.6,1963.2,1.27343113]
[1772195906885,0.001,1963.5,1963.2,1.27343113]
[1772195909007,0.001,1963.5,1963.2,1.8347871]
[1772195911015,0.53533507,1963.5,1963.1,1.27349318]
[1772195911185,0.001,1963.5,1963.1,1.27349318]
[1772195911387,0.53533507,1963.5,1962.9,0.0011]
[1772195911580,0.53533507,1963.5,1962.9,1.27471438]
[1772195913714,1.27330141,1963.4,1962.9,1.27471438]
[1772195913890,1.80862183,1963.5,1962.9,1.27471438]
[1772195914701,0.53433507,1963.4,1962.9,0.0011]
[1772195915916,1.27336627,1963.3,1962.9,0.0011]
[1772195916114,1.80770134,1963.3,1962.9,0.0011]
[1772195916318,0.53433507,1963.3,1962.9,0.0011]
[1772195916518,1.27330927,1963.4,1962.9,0.0011]
[1772195916731,1.80861599,1963.5,1962.9,0.0011]
[1772195918096,1.80861599,1963.5,1962.9,1.27362575]
[1772195918297,0.57171014,1963.1,1962.6,0.0011]
[1772195918493,0.57171014,1963.0,1962.6,0.0011]
[1772195919001,0.57171014,1963.0,1962.9,0.0011]
[1772195919403,0.57171014,1963.0,1962.6,0.0011]
[1772195921106,1.27362575,1962.9,1962.6,0.0011]
[1772195922322,1.84532302,1963.0,1962.6,0.0011]
[1772195922527,0.56162372,1963.5,1962.6,0.53426953]
[1772195922856,1.8348837,1963.5,1962.6,0.53426953]
[1772195923525,1.8348837,1963.5,1962.8,0.53316953]
[1772195923721,0.56162372,1963.4,1962.7,1.27375554]
[1772195924128,0.56162372,1963.4,1962.7,1.80692507]
[1772195925233,0.56162372,1963.4,1962.7,1.27375554]
[1772195925406,1.83495415,1963.4,1962.7,1.80692507]
[1772195927810,1.83495415,1963.4,1962.8,0.53316953]
[1772195929643,1.83495415,1963.4,1962.9,1.27362575]
[1772195929814,0.56162372,1963.4,1962.9,1.27362575]
[1772195930737,1.83492639,1963.4,1962.9,1.27362575]
[1772195931141,1.83492639,1963.4,1962.8,1.80791425]
[1772195932421,0.56062372,1963.3,1962.8,0.0011]
[1772195934320,0.56062372,1963.1,1962.8,0.0011]
[1772195934819,0.56062372,1963.1,1962.6,0.0011]
[1772195936346,1.83411972,1963.1,1962.6,0.0011]
[1772195936715,0.001,1963.4,1962.8,0.53316953]
[1772195938223,0.001,1963.4,1962.9,1.27362575]
[1772195938538,0.001,1963.4,1962.7,5.62810161]
[1772195938733,0.56162372,1963.4,1962.7,7.18410161]
[1772195940649,0.56062372,1963.3,1962.6,0.0011]
[1772195940954,0.56062372,1963.2,1962.6,0.0011]
[1772195942529,1.83411972,1963.1,1962.6,0.0011]
[1772195943155,1.83411972,1963.1,1962.7,0.0011]
[1772195943327,1.27347095,1963.2,1962.7,0.53426953]
[1772195944344,1.83409467,1963.2,1962.7,0.0011]
[1772195944528,0.56062372,1963.1,1962.7,0.0011]
[1772195944850,1.2735404,1963.1,1962.7,0.0011]
[1772195945238,0.001,1963.3,1962.7,0.0011]
[1772195945239,1.83504157,1963.3,1962.7,0.0011]
[1772195946349,1.27441785,1963.3,1962.7,0.53426953]
[1772195946745,0.001,1963.3,1962.8,1.27369064]
[1772195950738,1.83492513,1963.5,1962.8,1.27369064]
[1772195950739,0.001,1963.5,1963.0,0.53872037]
[1772195950940,1.8094069,1963.9,1962.9,0.53872037]
[1772195951963,0.53642774,1963.3,1962.7,0.0011]
[1772195952161,0.53642774,1963.1,1962.6,0.0011]
[1772195952833,1.80998861,1963.0,1962.6,0.0011]
[1772195954834,1.81011838,1962.8,1962.5,0.0011]
[1772195956069,1.81011838,1962.8,1962.7,0.0011]
[1772195956530,0.53642774,1962.8,1962.7,0.0011]
[1772195957668,1.81018008,1962.8,1962.5,0.0011]
[1772195959858,0.53642774,1962.7,1962.5,0.0011]
[1772195962065,0.53642774,1962.2,1961.3,1.27464066]
[1772195962260,0.18685624,1962.5,1961.1,1.81346591]
[1772195962261,0.53642774,1961.9,1961.1,1.81346591]
[1772195962575,0.53642774,1961.8,1961.1,1.81346591]
[1772195963668,2.49462864,1962.2,1961.2,0.53872037]
[1772195963843,0.53642774,1962.1,1961.2,0.53872037]
[1772195964044,0.53642774,1962.0,1961.3,1.81338513]
[1772195964262,1.27419701,1962.1,1961.4,0.53872037]
[1772195964541,2.3077724,1962.2,1961.4,0.53872037]
[1772195964841,5.34770526,1962.6,1961.3,1.27466476]
[1772195964842,3.37138089,1962.4,1961.6,0.53872037]
[1772195965042,1.81037978,1962.4,1961.6,0.53872037]
[1772195966174,0.53642774,1962.6,1961.8,0.53872037]
[1772195968175,1.27388535,1962.5,1961.9,1.27427493]
[1772195970059,1.8103016,1962.6,1961.9,1.27427493]
[1772195970260,0.53642774,1962.5,1961.5,5.09873182]
[1772195970550,0.53642774,1962.5,1961.4,5.09897928]
[1772195970551,1.77134466,1961.8,1961.4,0.0011]
[1772195970758,0.53642774,1962.2,1961.4,1.81439478]
[1772195970952,0.53642774,1962.5,1961.6,0.53872037]
[1772195971157,1.27387386,1962.6,1961.4,0.0011]
[1772195971158,1.77134466,1961.8,1961.4,0.0011]
[1772195971479,0.53642774,1961.9,1961.4,0.0011]
[1772195972188,2.3077724,1961.8,1961.4,0.0011]
[1772195972354,1.81083259,1961.7,1961.2,0.0011]
[1772195974588,1.81073843,1961.9,1961.2,0.0011]
[1772195974962,1.27425889,1962.0,1961.2,0.53982037]
[1772195975287,3.5819656,1962.1,1961.2,0.53982037]
[1772195975495,0.53642774,1962.1,1961.2,0.53982037]
[1772195975782,1.27413237,1962.2,1961.2,0.53982037]
[1772195976151,0.53642774,1962.1,1961.2,0.0011]
[1772195976350,0.53642774,1962.1,1961.2,0.53982037]
[1772195976579,1.81063772,1962.0,1961.2,1.81450517]
[1772195980084,1.81063772,1962.0,1961.3,0.0011]
[1772195980269,0.001,1962.0,1961.3,0.52314224]
[1772195981986,0.001,1962.0,1961.5,0.52204224]
[1772195982191,0.001,1962.0,1961.6,1.549]
[1772195983461,1.77134466,1961.9,1961.3,3.34676787]
[1772195983656,2.32142491,1961.9,1961.3,3.34676787]
[1772195984674,1.27433989,1961.8,1961.3,3.34676787]
[1772195984874,3.59574922,1961.9,1961.3,3.34676787]
[1772195985299,0.55008025,1961.9,1961.3,3.34676787]
[1772195985505,1.8243699,1961.9,1961.3,3.34676787]
[1772195986265,0.55008025,1961.9,1961.3,3.34676787]
[1772195986693,1.82435661,1961.9,1961.3,3.34676787]
[1772195986896,1.82436106,1961.9,1961.3,3.34676787]
[1772195987585,3.59570572,1961.9,1961.3,3.34676787]
[1772195988302,2.32142491,1961.9,1961.3,3.34676787]
[1772195989872,0.001,1962.0,1961.4,0.52204224]
[1772195991399,1.27521868,1962.0,1961.5,1.27453479]
[1772195991602,0.001,1962.0,1961.5,1.27453479]
[1772195992395,0.001,1961.9,1961.5,1.27453479]
[1772195993310,0.55108025,1961.9,1961.5,1.27453479]
[1772195994397,1.27399506,1962.4,1961.6,0.52204224]
[1772195994599,1.27399506,1962.4,1961.8,0.52204224]
[1772195994795,1.82407531,1962.4,1961.8,0.52204224]
[1772195996286,1.82407531,1962.4,1961.9,1.27427493]
[1772195997108,0.55008025,1962.4,1961.9,1.27427493]
[1772195997283,1.82403889,1962.4,1961.9,1.27427493]
[1772195997484,1.82403326,1962.4,1961.9,1.27427493]
[1772195998110,0.55008025,1962.3,1961.9,1.27427493]
[1772195999412,0.55008025,1962.3,1961.6,5.09782074]
[1772195999413,2.32142491,1962.2,1961.6,1.79646226]
[1772195999613,2.32142491,1962.2,1961.6,3.35046226]
[1772196000308,0.55008025,1962.6,1961.7,0.52204224]
[1772196000905,1.27388223,1962.6,1961.9,0.52204224]
[1772196001104,0.55008025,1962.2,1961.6,1.79646258]
[1772196001283,0.55008025,1961.9,1961.4,2.83063834]
[1772196001624,2.32142491,1962.0,1961.5,0.52204224]
[1772196001787,2.32142491,1962.0,1961.3,5.099601]
[1772196001788,0.55008025,1961.9,1961.3,1.79776126]
[1772196001987,0.55008025,1961.9,1961.3,3.35276126]
[1772196002188,0.55008025,1961.9,1961.3,1.79776126]
[1772196002407,0.55008025,1961.9,1961.3,3.35276126]
[1772196002715,0.55008025,1962.1,1961.4,0.52204224]
[1772196003095,0.55008025,1962.1,1961.5,1.79657703]
[1772196003295,0.55008025,1962.1,1961.6,0.52204224]
[1772196004013,2.32142491,1962.3,1961.6,0.52204224]
[1772196004401,0.001,1961.8,1961.6,0.52204224]
[1772196005194,0.001,1961.8,1961.7,1.27440485]
[1772196005439,0.55008025,1962.4,1961.8,0.52204224]
[1772196005717,0.001,1962.7,1961.8,0.52204224]
[1772196007113,0.001,1962.7,1961.9,1.27427493]
[1772196007315,0.001,1962.7,1962.2,0.52204224]
[1772196007488,0.001,1962.7,1962.3,2.07704224]
[1772196007692,2.32142491,1962.6,1962.1,1.555]
[1772196009251,0.55008025,1962.5,1962.0,0.52204224]
[1772196009419,0.55008025,1962.5,1961.9,1.27427493]
[1772196010322,0.55008025,1962.5,1961.8,5.61924903]
[1772196010323,0.53839369,1962.3,1961.8,1.27429122]
[1772196011615,0.53839369,1962.2,1961.6,5.09777329]
[1772196011810,1.274024,1962.3,1961.5,1.27449233]
[1772196011811,0.53839369,1962.0,1961.5,1.27449233]
[1772196012542,0.53839369,1962.0,1961.4,1.27564955]
[1772196014143,0.53839369,1962.2,1961.5,0.35598206]
[1772196014839,0.53839369,1962.2,1961.5,1.91298206]
[1772196015240,0.53839369,1962.2,1961.5,0.35598206]
[1772196015452,0.53839369,1962.2,1961.5,1.91398206]
[1772196015745,0.53839369,1962.2,1961.6,0.35575594]
[1772196015948,0.001,1961.9,1961.7,1.27440485]
[1772196016243,0.53839369,1962.2,1961.7,1.62916079]
[1772196016655,0.53839369,1962.2,1961.7,1.27440485]
[1772196017340,1.99920061,1962.4,1961.7,1.62904742]
[1772196017913,0.53839369,1962.4,1961.7,1.62904742]
[1772196018121,1.81234627,1962.4,1961.7,1.62904742]
[1772196018640,0.53839369,1962.4,1961.7,1.62904742]
[1772196019232,1.81234746,1962.4,1961.7,1.62904742]
[1772196019440,0.53839369,1962.3,1961.7,1.62904742]
[1772196019746,0.53839369,1962.3,1961.7,2.83340485]
[1772196020145,1.8124738,1962.2,1961.7,2.83340485]
[1772196020350,0.53839369,1962.2,1961.7,2.83340485]
[1772196021626,0.53839369,1962.0,1961.5,5.09801916]
[1772196021943,0.53839369,1962.0,1961.5,1.27453479]
[1772196022348,0.53839369,1961.9,1961.4,0.0011]
[1772196022550,0.53839369,1961.5,1961.0,1.5611]
[1772196022745,0.53839369,1961.5,1961.0,2.83594622]
[1772196023423,0.53839369,1961.5,1961.0,0.0011]
[1772196024431,0.53839369,1961.3,1960.8,6.66091403]
[1772196024635,0.53839369,1961.3,1960.9,1.27489828]
[1772196025154,5.09597844,1962.4,1960.9,1.62869421]
[1772196025155,0.53839369,1961.5,1960.9,1.62869421]
[1772196027360,0.53839369,1961.5,1961.1,0.0011]
[1772196027661,0.53839369,1961.4,1961.1,0.0011]
[1772196028022,1.27445464,1961.7,1961.1,0.0011]
[1772196028145,0.53839369,1962.0,1961.1,0.35458991]
[1772196029358,0.53839369,1961.9,1961.2,1.27472975]
[1772196029559,0.53839369,1961.9,1961.3,0.35329369]
[1772196029760,0.001,1962.1,1961.5,0.35329369]
[1772196029943,0.001,1962.1,1961.6,1.561]
[1772196030134,1.27514712,1962.1,1961.6,1.561]
[1772196030341,0.53839369,1962.0,1961.6,1.561]
[1772196030640,0.53839369,1962.0,1961.3,0.35329369]
[1772196030858,0.53839369,1962.0,1961.4,1.561]
[1772196031764,0.53839369,1961.9,1961.4,2.83555327]
[1772196031952,0.53939369,1962.1,1961.4,3.18784638]
[1772196032280,0.53939369,1962.1,1961.5,0.35229311]
[1772196033959,0.53939369,1962.1,1961.6,1.27446982]
[1772196034559,5.0,1962.0,1961.6,1.27446982]
[1772196036378,0.53839369,1961.9,1961.5,5.09787928]
[1772196036567,0.53839369,1961.9,1961.3,1.27466476]
[1772196038157,0.53839369,1961.9,1961.2,1.27471794]
[1772196038679,0.50988263,1961.7,1961.2,1.27471794]
[1772196040854,1.78429272,1961.7,1961.2,1.27471794]
[1772196041888,1.78429272,1961.7,1961.1,6.66425772]
[1772196041889,0.5064112,1961.6,1961.1,0.0011]
[1772196042553,0.5064112,1961.4,1961.1,0.0011]
[1772196044089,0.5064112,1961.4,1960.8,1.2760384]
[1772196044393,0.5064112,1961.4,1960.8,1.79988685]
[1772196044592,1.78107596,1961.3,1960.8,1.79988685]
[1772196046162,0.5064112,1961.3,1960.8,1.79988685]
[1772196046557,1.46137467,1961.6,1960.8,1.79988685]
[1772196046765,0.5064112,1961.5,1960.8,1.79988685]
[1772196047598,0.5064112,1961.7,1960.9,0.52384845]
[1772196047904,1.78171577,1961.9,1960.9,0.52384845]
[1772196048280,0.5064112,1961.8,1961.0,1.564]
[1772196048467,0.5064112,1961.6,1961.0,1.564]
[1772196048677,0.5064112,1961.4,1961.0,1.27484306]
[1772196052193,1.7807714,1961.8,1961.1,0.52384845]
[1772196053009,0.5064112,1961.7,1960.9,0.0011]
[1772196053179,0.5064112,1961.7,1961.0,1.27485976]
[1772196053384,0.5064112,1961.7,1960.9,1.27597543]
[1772196054473,0.5064112,1961.7,1960.9,1.79982388]
[1772196055285,1.78088102,1961.6,1960.9,1.79982388]
[1772196055886,0.5064112,1961.6,1960.9,1.79982388]
[1772196056810,0.5064112,1961.6,1960.9,1.27597543]
[1772196057380,0.5064112,1961.4,1960.9,0.0011]
[1772196058176,0.5064112,1961.6,1960.9,0.52494845]
[1772196058504,1.78089618,1961.6,1960.9,0.52494845]
[1772196058883,0.5064112,1961.5,1960.9,0.52494845]
[1772196059611,0.5064112,1961.5,1961.0,1.27485976]
[1772196060411,1.78095727,1961.5,1961.0,1.27485976]
[1772196060708,0.5064112,1961.4,1960.9,3.3648282]
[1772196060881,0.5064112,1961.4,1960.9,2.84097975]
[1772196063025,1.78091709,1961.6,1960.9,2.84097975]
[1772196063184,1.78091709,1961.6,1961.0,0.52384845]
[1772196063391,0.5064112,1961.5,1961.0,0.52384845]
[1772196063990,0.001,1961.4,1961.0,0.52384845]
[1772196065003,0.001,1961.4,1961.1,1.27479475]
[1772196065374,0.001,1961.4,1961.1,1.7986432]
[1772196065576,0.001,1961.9,1961.2,0.52384845]
[1772196065778,0.001,1961.9,1961.4,0.52384845]
[1772196066992,0.001,1961.9,1961.5,1.27453479]
[1772196067908,0.001,1961.9,1961.6,0.52384845]
[1772196068107,0.001,1961.9,1961.3,3.36449008]
[1772196068108,0.5074112,1961.9,1961.3,3.36449008]
[1772196068482,0.5074112,1961.9,1961.3,2.84064163]
[1772196069309,1.78170927,1961.9,1961.3,2.84064163]
[1772196069518,0.5064112,1961.8,1961.3,2.84064163]
[1772196070317,0.5064112,1961.8,1961.3,1.27464163]
[1772196070616,0.001,1961.9,1961.4,0.48443568]
[1772196071910,0.52988401,1961.9,1961.4,3.32599405]
[1772196073319,0.001,1961.9,1961.5,0.48443568]
[1772196074029,0.52988401,1961.9,1961.3,0.48443568]
[1772196074238,0.52988401,1961.9,1961.3,1.274634]
[1772196075491,0.52988401,1961.9,1961.4,0.48443568]
[1772196075694,0.001,1961.9,1961.4,0.48443568]
[1772196075992,0.001,1961.9,1961.5,1.75897047]
[1772196076534,0.001,1961.8,1961.5,1.75897047]
[1772196078920,0.001,1961.8,1961.5,3.32897047]
[1772196081120,0.001,1961.8,1961.6,0.48443568]
[1772196082001,0.001,1961.9,1961.7,0.48443568]
[1772196083701,0.001,1961.9,1961.8,1.27433989]
[1772196086498,0.52988401,1961.9,1961.5,1.57]
[1772196086732,0.52988401,1961.9,1960.6,0.48553568]
[1772196086733,0.52888401,1961.8,1960.6,0.48553568]
[1772196087033,0.52888401,1961.5,1961.0,1.27595336]
[1772196087530,0.52888401,1961.5,1961.0,1.76038904]
[1772196088815,1.80342607,1961.5,1961.4,0.0011]
[1772196089316,0.52888401,1961.5,1961.4,0.0011]